[Event "*** MasterClass Titled Tuesday Blitz"]
[Site "Chess.com"]
[Date "2017.12.05"]
[Round "4"]
[White "josiwales"]
[Black "Margency"]
[Result "1-0"]
[WhiteElo "2363"]
[BlackElo "2498"]
[TimeControl "180+2"]
[EndTime "15:04:47 PST"]
[Termination "josiwales won by checkmate"]

1. e4 {[%clk 0:03:01.8]} 1... c5 {[%clk 0:03:01]} 2. Nc3 {[%clk 0:03:02.6]} 2...
d6 {[%clk 0:03:02.3]} 3. g3 {[%clk 0:03:03.5]} 3... Nc6 {[%clk 0:03:03.3]} 4.
Bg2 {[%clk 0:03:05.4]} 4... g6 {[%clk 0:03:04.8]} 5. d3 {[%clk 0:03:07.3]} 5...
Bg7 {[%clk 0:03:06.3]} 6. Be3 {[%clk 0:03:08.3]} 6... e6 {[%clk 0:03:04]} 7. Qd2
{[%clk 0:03:09.3]} 7... Nd4 {[%clk 0:03:05.3]} 8. Nd1 {[%clk 0:03:08.6]} 8...
Rb8 {[%clk 0:03:02.6]} 9. c3 {[%clk 0:03:10.1]} 9... Nc6 {[%clk 0:03:03.2]} 10.
Ne2 {[%clk 0:03:10.4]} 10... b5 {[%clk 0:03:03.6]} 11. f4 {[%clk 0:03:11.7]}
11... b4 {[%clk 0:03:03.8]} 12. O-O {[%clk 0:03:09.7]} 12... bxc3 {[%clk
0:03:04.4]} 13. bxc3 {[%clk 0:03:11.6]} 13... Qa5 {[%clk 0:03:05.3]} 14. g4
{[%clk 0:03:09.6]} 14... Ba6 {[%clk 0:02:49.3]} 15. f5 {[%clk 0:03:06.7]} 15...
Ne5 {[%clk 0:02:48.9]} 16. g5 {[%clk 0:03:04.7]} 16... Bxd3 {[%clk 0:02:44.1]}
17. f6 {[%clk 0:03:06.1]} 17... Bf8 {[%clk 0:02:44.7]} 18. Bf4 {[%clk
0:03:06.5]} 18... c4 {[%clk 0:02:40.2]} 19. Nd4 {[%clk 0:03:03.9]} 19... h6
{[%clk 0:02:38.5]} 20. h4 {[%clk 0:02:59.4]} 20... hxg5 {[%clk 0:02:39]} 21.
hxg5 {[%clk 0:03:01.3]} 21... Bxf1 {[%clk 0:02:32.2]} 22. Bxf1 {[%clk
0:02:58.7]} 22... Qc5 {[%clk 0:02:29.9]} 23. Ne3 {[%clk 0:02:59.3]} 23... Rh4
{[%clk 0:02:20.7]} 24. Qf2 {[%clk 0:02:38.8]} 24... Rh5 {[%clk 0:02:10.1]} 25.
Be2 {[%clk 0:02:33.7]} 25... Rh3 {[%clk 0:02:04.4]} 26. Kg2 {[%clk 0:02:20.7]}
26... Rh8 {[%clk 0:02:02]} 27. Qg3 {[%clk 0:02:09.7]} 27... Rb2 {[%clk 0:02:00]}
28. Nec2 {[%clk 0:01:30.5]} 28... a5 {[%clk 0:01:39.2]} 29. Bc1 {[%clk 0:01:27]}
29... Rb8 {[%clk 0:01:34.2]} 30. Ba3 {[%clk 0:01:28]} 30... Qc7 {[%clk
0:01:29.2]} 31. Ne3 {[%clk 0:01:23.3]} 31... Ne7 {[%clk 0:01:10.8]} 32. fxe7
{[%clk 0:01:19.4]} 32... Bxe7 {[%clk 0:01:12.4]} 33. Rf1 {[%clk 0:01:20.3]}
33... Rb6 {[%clk 0:00:56.6]} 34. Ng4 {[%clk 0:01:10.1]} 34... Nxg4 {[%clk
0:00:44]} 35. Bxg4 {[%clk 0:01:12]} 35... Qb7 {[%clk 0:00:40.4]} 36. Qf3 {[%clk
0:01:09.9]} 36... Rf8 {[%clk 0:00:37.3]} 37. Rd1 {[%clk 0:00:56.9]} 37... Bxg5
{[%clk 0:00:35.3]} 38. e5 {[%clk 0:00:51.2]} 38... Qxf3+ {[%clk 0:00:35.1]} 39.
Bxf3 {[%clk 0:00:40.4]} 39... d5 {[%clk 0:00:33]} 40. Bxf8 {[%clk 0:00:31.7]}
40... Kxf8 {[%clk 0:00:34.5]} 41. Rf1 {[%clk 0:00:29.2]} 41... Kg7 {[%clk
0:00:34.3]} 42. Bg4 {[%clk 0:00:22.6]} 42... Be3 {[%clk 0:00:28.8]} 43. Kf3
{[%clk 0:00:21.2]} 43... Bd2 {[%clk 0:00:25.6]} 44. Ne2 {[%clk 0:00:20.7]} 44...
Rb2 {[%clk 0:00:20.2]} 45. a4 {[%clk 0:00:21.5]} 45... Rb3 {[%clk 0:00:19.1]}
46. Nd4 {[%clk 0:00:17.3]} 46... Rxc3+ {[%clk 0:00:19.3]} 47. Ke2 {[%clk
0:00:18.6]} 47... Rd3 {[%clk 0:00:09.9]} 48. Nb5 {[%clk 0:00:15.4]} 48... Bg5
{[%clk 0:00:08.2]} 49. Nd6 {[%clk 0:00:16.2]} 49... f5 {[%clk 0:00:08.8]} 50.
exf6+ {[%clk 0:00:17]} 50... Bxf6 {[%clk 0:00:10]} 51. Ne8+ {[%clk 0:00:18.2]}
51... Kh6 {[%clk 0:00:10.4]} 52. Nxf6 {[%clk 0:00:18.5]} 52... Kg5 {[%clk
0:00:11.9]} 53. Bxe6 {[%clk 0:00:18.7]} 53... Ra3 {[%clk 0:00:12.2]} 54. Nxd5
{[%clk 0:00:18.7]} 54... Rxa4 {[%clk 0:00:12.7]} 55. Rg1+ {[%clk 0:00:20.1]}
55... Kh4 {[%clk 0:00:13.4]} 56. Rg4+ {[%clk 0:00:19.2]} 56... Kh5 {[%clk
0:00:14]} 57. Nf4+ {[%clk 0:00:20]} 57... Kh6 {[%clk 0:00:15.4]} 58. Rxg6+
{[%clk 0:00:21.1]} 58... Kh7 {[%clk 0:00:16.9]} 59. Bf5 {[%clk 0:00:22.7]} 59...
Kh8 {[%clk 0:00:17.7]} 60. Ne6 {[%clk 0:00:20.4]} 60... c3 {[%clk 0:00:16.9]}
61. Kd3 {[%clk 0:00:19.6]} 61... Ra3 {[%clk 0:00:12.8]} 62. Ng5 {[%clk
0:00:19.3]} 62... c2+ {[%clk 0:00:13.2]} 63. Kxc2 {[%clk 0:00:20.5]} 63... a4
{[%clk 0:00:12.6]} 64. Nf7+ {[%clk 0:00:19.3]} 64... Kh7 {[%clk 0:00:14.1]} 65.
Rg3# {[%clk 0:00:20.9]} 1-0

[Event "*** MasterClass Titled Tuesday Blitz"]
[Site "Chess.com"]
[Date "2017.12.05"]
[Round "4"]
[White "Rodalquilar"]
[Black "Koksik_13"]
[Result "0-1"]
[WhiteElo "2477"]
[BlackElo "2247"]
[TimeControl "180+2"]
[EndTime "15:05:03 PST"]
[Termination "Koksik_13 won on time"]

1. d4 {[%clk 0:03:01.9]} 1... e6 {[%clk 0:02:50.4]} 2. Nf3 {[%clk 0:03:02.5]}
2... d5 {[%clk 0:02:46.6]} 3. Bf4 {[%clk 0:03:02.8]} 3... Nf6 {[%clk 0:02:46.9]}
4. e3 {[%clk 0:03:03.3]} 4... Bd6 {[%clk 0:02:46]} 5. Bg3 {[%clk 0:03:04.1]}
5... Ne4 {[%clk 0:02:44.1]} 6. c4 {[%clk 0:03:04.7]} 6... c6 {[%clk 0:02:45]} 7.
Nc3 {[%clk 0:03:06]} 7... f5 {[%clk 0:02:44.9]} 8. Bd3 {[%clk 0:03:06.7]} 8...
O-O {[%clk 0:02:43.6]} 9. Qc2 {[%clk 0:03:05.8]} 9... Qe7 {[%clk 0:02:43.1]} 10.
c5 {[%clk 0:03:01]} 10... Bxg3 {[%clk 0:02:37.1]} 11. hxg3 {[%clk 0:03:01.7]}
11... Nd7 {[%clk 0:02:38.6]} 12. g4 {[%clk 0:02:17.7]} 12... fxg4 {[%clk
0:02:28]} 13. Nxe4 {[%clk 0:02:18.1]} 13... dxe4 {[%clk 0:02:13.2]} 14. Bxe4
{[%clk 0:02:18.8]} 14... g6 {[%clk 0:01:37.1]} 15. Ne5 {[%clk 0:01:39.4]} 15...
Qf6 {[%clk 0:01:07.1]} 16. Nxg4 {[%clk 0:01:30.6]} 16... Qg5 {[%clk 0:01:08]}
17. Nh6+ {[%clk 0:01:15]} 17... Kg7 {[%clk 0:01:07.8]} 18. f4 {[%clk 0:01:16]}
18... Qg3+ {[%clk 0:01:07.6]} 19. Qf2 {[%clk 0:01:16.9]} 19... Qxf2+ {[%clk
0:01:08.3]} 20. Kxf2 {[%clk 0:01:18.8]} 20... Nf6 {[%clk 0:01:09.4]} 21. Bf3
{[%clk 0:01:20.2]} 21... b6 {[%clk 0:00:49.8]} 22. b4 {[%clk 0:01:20.4]} 22...
a5 {[%clk 0:00:50.2]} 23. a3 {[%clk 0:01:21.4]} 23... bxc5 {[%clk 0:00:49.1]}
24. bxc5 {[%clk 0:01:20.8]} 24... Rb8 {[%clk 0:00:45.8]} 25. g4 {[%clk
0:01:12.9]} 25... Rb2+ {[%clk 0:00:42.8]} 26. Kg3 {[%clk 0:01:14]} 26... Rb3
{[%clk 0:00:41.2]} 27. g5 {[%clk 0:01:12.4]} 27... Nd5 {[%clk 0:00:42.2]} 28.
Bxd5 {[%clk 0:01:11.7]} 28... exd5 {[%clk 0:00:43.4]} 29. Rhe1 {[%clk
0:01:10.4]} 29... Re8 {[%clk 0:00:44.5]} 30. Kf2 {[%clk 0:01:11.1]} 30... a4
{[%clk 0:00:37.7]} 31. Rab1 {[%clk 0:00:59.4]} 31... Rxa3 {[%clk 0:00:34.3]} 32.
Rb6 {[%clk 0:01:00.2]} 32... Bd7 {[%clk 0:00:22.4]} 33. Rb7 {[%clk 0:01:01.2]}
33... Re7 {[%clk 0:00:23.1]} 34. Ng4 {[%clk 0:01:02.6]} 34... Ra2+ {[%clk
0:00:22.3]} 35. Kg3 {[%clk 0:01:03.6]} 35... Kf7 {[%clk 0:00:12.9]} 36. Ne5+
{[%clk 0:01:02.7]} 36... Ke6 {[%clk 0:00:14.1]} 37. Reb1 {[%clk 0:00:55.4]}
37... a3 {[%clk 0:00:13.4]} 38. R1b6 {[%clk 0:00:53.1]} 38... Ra1 {[%clk
0:00:12.5]} 39. Ra7 {[%clk 0:00:33]} 39... Be8 {[%clk 0:00:12.2]} 40. Ra8 {[%clk
0:00:28.4]} 40... Kf5 {[%clk 0:00:09.7]} 41. Kf3 {[%clk 0:00:20.3]} 41... h6
{[%clk 0:00:06.9]} 42. gxh6 {[%clk 0:00:20.8]} 42... g5 {[%clk 0:00:06.8]} 43.
fxg5 {[%clk 0:00:13.6]} 43... Kxg5 {[%clk 0:00:07.8]} 44. h7 {[%clk 0:00:11.3]}
44... Bh5+ {[%clk 0:00:05]} 45. Kg3 {[%clk 0:00:12.4]} 45... Rxh7 {[%clk
0:00:03.9]} 46. Rxc6 {[%clk 0:00:13.6]} 46... Rg7 {[%clk 0:00:04.5]} 47. Rf8
{[%clk 0:00:12.8]} 47... a2 {[%clk 0:00:04.6]} 48. Ra6 {[%clk 0:00:06.1]} 48...
Rg1+ {[%clk 0:00:06]} 49. Kf2 {[%clk 0:00:07.2]} 49... a1=Q {[%clk 0:00:07.5]}
50. Rxa1 {[%clk 0:00:08.5]} 50... Rxa1 {[%clk 0:00:08.7]} 51. c6 {[%clk
0:00:10.4]} 51... Rc1 {[%clk 0:00:08.7]} 52. e4 {[%clk 0:00:09.7]} 52... dxe4
{[%clk 0:00:09.2]} 53. d5 {[%clk 0:00:11.3]} 53... Rc3 {[%clk 0:00:08.3]} 54. d6
{[%clk 0:00:11.3]} 54... e3+ {[%clk 0:00:09.6]} 55. Kg2 {[%clk 0:00:11.1]} 55...
e2 {[%clk 0:00:10.4]} 56. Kf2 {[%clk 0:00:11.5]} 56... Rc1 {[%clk 0:00:10.9]}
57. Nd3 {[%clk 0:00:12]} 57... Rf1+ {[%clk 0:00:12.1]} 58. Ke3 {[%clk
0:00:10.7]} 58... Rxf8 {[%clk 0:00:12.3]} 59. c7 {[%clk 0:00:12.6]} 59... Rd7
{[%clk 0:00:12]} 0-1

[Event "*** MasterClass Titled Tuesday Blitz"]
[Site "Chess.com"]
[Date "2017.12.05"]
[Round "4"]
[White "lucasmito"]
[Black "Marcin"]
[Result "0-1"]
[WhiteElo "2190"]
[BlackElo "2219"]
[TimeControl "180+2"]
[EndTime "15:05:09 PST"]
[Termination "Marcin won by checkmate"]

1. e4 {[%clk 0:03:01.9]} 1... c5 {[%clk 0:02:58.2]} 2. Nf3 {[%clk 0:03:02.4]}
2... e6 {[%clk 0:02:59]} 3. d4 {[%clk 0:03:02]} 3... cxd4 {[%clk 0:03:00.9]} 4.
Nxd4 {[%clk 0:03:01.8]} 4... Nc6 {[%clk 0:03:02.4]} 5. Nc3 {[%clk 0:03:01.1]}
5... Qc7 {[%clk 0:03:03.6]} 6. Be3 {[%clk 0:02:59.3]} 6... a6 {[%clk 0:03:04.3]}
7. Bd3 {[%clk 0:02:57.5]} 7... Nf6 {[%clk 0:03:03.4]} 8. O-O {[%clk 0:02:52.5]}
8... Nxd4 {[%clk 0:03:04.3]} 9. Bxd4 {[%clk 0:02:53.3]} 9... Bc5 {[%clk
0:03:05.9]} 10. Bxc5 {[%clk 0:02:53.9]} 10... Qxc5 {[%clk 0:03:06.8]} 11. Qe2
{[%clk 0:02:42.9]} 11... d6 {[%clk 0:03:06.7]} 12. Kh1 {[%clk 0:02:42.9]} 12...
O-O {[%clk 0:03:04.2]} 13. f4 {[%clk 0:02:43.4]} 13... Nd7 {[%clk 0:02:51.9]}
14. Rae1 {[%clk 0:02:38.4]} 14... b5 {[%clk 0:02:49.5]} 15. e5 {[%clk
0:02:36.5]} 15... Bb7 {[%clk 0:02:50.5]} 16. Ne4 {[%clk 0:02:32.1]} 16... Bxe4
{[%clk 0:02:41.8]} 17. Qxe4 {[%clk 0:02:22]} 17... g6 {[%clk 0:02:40.9]} 18.
exd6 {[%clk 0:02:18.1]} 18... Qxd6 {[%clk 0:02:41.2]} 19. Qe3 {[%clk 0:01:27.9]}
19... Rac8 {[%clk 0:02:31.7]} 20. Rf3 {[%clk 0:01:19.9]} 20... Qc5 {[%clk
0:02:18.4]} 21. Qe2 {[%clk 0:01:05.5]} 21... Nf6 {[%clk 0:02:13.6]} 22. a3
{[%clk 0:00:37.6]} 22... Rfd8 {[%clk 0:02:11.5]} 23. h3 {[%clk 0:00:34.2]} 23...
Qd4 {[%clk 0:01:36.4]} 24. g4 {[%clk 0:00:16.2]} 24... Qxb2 {[%clk 0:01:32.1]}
25. f5 {[%clk 0:00:17.2]} 25... exf5 {[%clk 0:01:29]} 26. gxf5 {[%clk 0:00:17]}
26... Re8 {[%clk 0:01:30.2]} 27. Qf2 {[%clk 0:00:17.7]} 27... Rxe1+ {[%clk
0:01:30.8]} 28. Qxe1 {[%clk 0:00:19.6]} 28... Re8 {[%clk 0:01:31.9]} 29. Qf2
{[%clk 0:00:13.9]} 29... g5 {[%clk 0:01:16.5]} 30. Rg3 {[%clk 0:00:09.9]} 30...
h6 {[%clk 0:01:04.1]} 31. h4 {[%clk 0:00:10.9]} 31... g4 {[%clk 0:00:44.5]} 32.
Rg1 {[%clk 0:00:02.9]} 32... Qe5 {[%clk 0:00:41.3]} 33. Rg2 {[%clk 0:00:02.4]}
33... Qe3 {[%clk 0:00:37.6]} 34. Qf1 {[%clk 0:00:02.9]} 34... Qh3+ {[%clk
0:00:30.4]} 35. Kg1 {[%clk 0:00:03.3]} 35... Qxh4 {[%clk 0:00:27.7]} 36. Rf2
{[%clk 0:00:03.9]} 36... Qg3+ {[%clk 0:00:26]} 37. Rg2 {[%clk 0:00:05.1]} 37...
Qe3+ {[%clk 0:00:26.3]} 38. Kh1 {[%clk 0:00:05.4]} 38... Qe1 {[%clk 0:00:25.2]}
39. Qxe1 {[%clk 0:00:04.8]} 39... Rxe1+ {[%clk 0:00:25.4]} 40. Kh2 {[%clk
0:00:06.7]} 40... Re3 {[%clk 0:00:24.4]} 41. a4 {[%clk 0:00:07]} 41... bxa4
{[%clk 0:00:25.1]} 42. Bxa6 {[%clk 0:00:06.3]} 42... h5 {[%clk 0:00:23.8]} 43.
c4 {[%clk 0:00:07.2]} 43... Rc3 {[%clk 0:00:24.4]} 44. Ra2 {[%clk 0:00:07.4]}
44... h4 {[%clk 0:00:25.4]} 45. Rxa4 {[%clk 0:00:08.4]} 45... Rc2+ {[%clk
0:00:26.4]} 46. Kg1 {[%clk 0:00:08.7]} 46... g3 {[%clk 0:00:25.5]} 47. Ra3
{[%clk 0:00:10.2]} 47... Nh5 {[%clk 0:00:21.4]} 48. c5 {[%clk 0:00:07]} 48...
Nf4 {[%clk 0:00:21.9]} 49. c6 {[%clk 0:00:06.1]} 49... Rc1+ {[%clk 0:00:22.1]}
50. Bf1 {[%clk 0:00:06.1]} 50... Rxc6 {[%clk 0:00:23.4]} 51. Rf3 {[%clk
0:00:05.7]} 51... Nh5 {[%clk 0:00:21.9]} 52. Be2 {[%clk 0:00:04.2]} 52... Rc2
{[%clk 0:00:21.8]} 53. Re3 {[%clk 0:00:04.7]} 53... Nf4 {[%clk 0:00:21.5]} 54.
Bf1 {[%clk 0:00:05.9]} 54... Kg7 {[%clk 0:00:21.4]} 55. Rf3 {[%clk 0:00:06.7]}
55... Nh5 {[%clk 0:00:17.6]} 56. Bd3 {[%clk 0:00:07.8]} 56... Rd2 {[%clk
0:00:17.5]} 57. Kf1 {[%clk 0:00:07.5]} 57... Kf6 {[%clk 0:00:17.9]} 58. Kg1
{[%clk 0:00:07.9]} 58... Kg5 {[%clk 0:00:18.2]} 59. Bf1 {[%clk 0:00:09.1]} 59...
Nf4 {[%clk 0:00:18.7]} 60. f6 {[%clk 0:00:07]} 60... Kg4 {[%clk 0:00:19]} 61.
Rb3 {[%clk 0:00:06.1]} 61... h3 {[%clk 0:00:20.1]} 62. Rb4 {[%clk 0:00:06.8]}
62... Rd1 {[%clk 0:00:17.5]} 63. Rd4 {[%clk 0:00:02.9]} 63... h2+ {[%clk
0:00:17.8]} 64. Kh1 {[%clk 0:00:02.9]} 64... Rxf1# {[%clk 0:00:19.3]} 0-1

[Event "*** MasterClass Titled Tuesday Blitz"]
[Site "Chess.com"]
[Date "2017.12.05"]
[Round "4"]
[White "MITerryble"]
[Black "yurisolo"]
[Result "1-0"]
[WhiteElo "2662"]
[BlackElo "2490"]
[TimeControl "180+2"]
[EndTime "15:05:28 PST"]
[Termination "MITerryble won on time"]

1. Nf3 {[%clk 0:03:01.9]} 1... c5 {[%clk 0:02:59.8]} 2. e4 {[%clk 0:02:54.7]}
2... d6 {[%clk 0:02:59.8]} 3. Bb5+ {[%clk 0:02:55.4]} 3... Nd7 {[%clk
0:02:58.3]} 4. d4 {[%clk 0:02:55.2]} 4... Nf6 {[%clk 0:02:58.3]} 5. Nc3 {[%clk
0:02:55.4]} 5... a6 {[%clk 0:02:58.8]} 6. Bxd7+ {[%clk 0:02:55.1]} 6... Nxd7
{[%clk 0:03:00.2]} 7. d5 {[%clk 0:02:47.4]} 7... b5 {[%clk 0:02:55.7]} 8. Bf4
{[%clk 0:02:47.8]} 8... b4 {[%clk 0:02:04]} 9. Ne2 {[%clk 0:02:46.7]} 9... g6
{[%clk 0:02:03.5]} 10. O-O {[%clk 0:02:39]} 10... Bg7 {[%clk 0:02:02.3]} 11. Qc1
{[%clk 0:02:40.4]} 11... a5 {[%clk 0:01:41.7]} 12. Re1 {[%clk 0:02:37.6]} 12...
Ba6 {[%clk 0:01:33.9]} 13. Bh6 {[%clk 0:02:37.4]} 13... Bf6 {[%clk 0:01:29]} 14.
Bg5 {[%clk 0:02:33.8]} 14... Bg7 {[%clk 0:01:28.3]} 15. Bh6 {[%clk 0:02:34.6]}
15... Bf6 {[%clk 0:01:28.4]} 16. Ng3 {[%clk 0:02:27.7]} 16... Ne5 {[%clk
0:01:24.3]} 17. Nxe5 {[%clk 0:02:27.8]} 17... Bxe5 {[%clk 0:01:24.3]} 18. Bf4
{[%clk 0:02:26.7]} 18... Bg7 {[%clk 0:01:19.8]} 19. Bh6 {[%clk 0:02:26.5]} 19...
Bf6 {[%clk 0:01:15.3]} 20. f4 {[%clk 0:01:52.2]} 20... Bd4+ {[%clk 0:01:08.5]}
21. Kh1 {[%clk 0:01:52.7]} 21... Qd7 {[%clk 0:00:59.4]} 22. h3 {[%clk
0:01:29.2]} 22... Bf2 {[%clk 0:00:55.8]} 23. Kh2 {[%clk 0:01:30.3]} 23... Bxe1
{[%clk 0:00:48.9]} 24. Qxe1 {[%clk 0:01:32.1]} 24... f6 {[%clk 0:00:37.4]} 25.
Rd1 {[%clk 0:01:30.9]} 25... O-O-O {[%clk 0:00:32.5]} 26. a3 {[%clk 0:01:23.1]}
26... Kb7 {[%clk 0:00:32]} 27. axb4 {[%clk 0:01:17.5]} 27... axb4 {[%clk
0:00:33.8]} 28. e5 {[%clk 0:01:18.1]} 28... f5 {[%clk 0:00:24.9]} 29. c3 {[%clk
0:01:13.8]} 29... b3 {[%clk 0:00:24.7]} 30. Nf1 {[%clk 0:00:51.6]} 30... Qb5
{[%clk 0:00:24.4]} 31. Ne3 {[%clk 0:00:45.8]} 31... Qe2 {[%clk 0:00:23.4]} 32.
Qxe2 {[%clk 0:00:46.8]} 32... Bxe2 {[%clk 0:00:22.8]} 33. Rd2 {[%clk 0:00:48.6]}
33... Bb5 {[%clk 0:00:22.5]} 34. c4 {[%clk 0:00:48.4]} 34... Ba4 {[%clk
0:00:21.7]} 35. e6 {[%clk 0:00:42.2]} 35... Rhe8 {[%clk 0:00:20.9]} 36. g4
{[%clk 0:00:42.5]} 36... fxg4 {[%clk 0:00:20.7]} 37. hxg4 {[%clk 0:00:44.3]}
37... Rg8 {[%clk 0:00:18.4]} 38. Kg3 {[%clk 0:00:44.7]} 38... Kc7 {[%clk
0:00:17.3]} 39. Rh2 {[%clk 0:00:44.7]} 39... Rde8 {[%clk 0:00:14.9]} 40. Nd1
{[%clk 0:00:42.1]} 40... Ra8 {[%clk 0:00:11.9]} 41. Bg5 {[%clk 0:00:41.9]} 41...
Rg7 {[%clk 0:00:12.5]} 42. Bh6 {[%clk 0:00:37.6]} 42... Rgg8 {[%clk 0:00:11.5]}
43. Nc3 {[%clk 0:00:31.3]} 43... Be8 {[%clk 0:00:11.6]} 44. Ne4 {[%clk
0:00:29.7]} 44... Ra1 {[%clk 0:00:11.3]} 45. Bg5 {[%clk 0:00:25.7]} 45... Rg7
{[%clk 0:00:11.2]} 46. Bh6 {[%clk 0:00:22.3]} 46... Rg8 {[%clk 0:00:10.2]} 47.
Bg5 {[%clk 0:00:11.9]} 47... Rg7 {[%clk 0:00:10.1]} 48. Bh6 {[%clk 0:00:13.1]}
48... Rg8 {[%clk 0:00:10.8]} 49. Bg5 {[%clk 0:00:14.3]} 49... Rg7 {[%clk
0:00:11.4]} 50. Bh6 {[%clk 0:00:13.9]} 50... Rg8 {[%clk 0:00:11.9]} 51. Bg5
{[%clk 0:00:11]} 51... Rg7 {[%clk 0:00:10.2]} 52. Nc3 {[%clk 0:00:10.8]} 52...
Rc1 {[%clk 0:00:10.4]} 53. Bh6 {[%clk 0:00:10]} 53... Rg8 {[%clk 0:00:10.5]} 54.
Rf2 {[%clk 0:00:10.8]} 54... Rc2 {[%clk 0:00:10.8]} 55. Kf3 {[%clk 0:00:10]}
55... Rxf2+ {[%clk 0:00:10.1]} 56. Kxf2 {[%clk 0:00:11]} 56... Kb6 {[%clk
0:00:06.1]} 57. Ke3 {[%clk 0:00:11.9]} 57... Ka5 {[%clk 0:00:04.8]} 58. Kd3
{[%clk 0:00:12.9]} 58... Kb4 {[%clk 0:00:05.4]} 59. Ne4 {[%clk 0:00:13.1]} 59...
Ka5 {[%clk 0:00:04.1]} 60. Ng5 {[%clk 0:00:12.9]} 60... Kb6 {[%clk 0:00:04.1]}
61. Kc3 {[%clk 0:00:13.4]} 61... Ba4 {[%clk 0:00:03.2]} 62. Nf7 {[%clk
0:00:11.7]} 62... Kc7 {[%clk 0:00:03.6]} 63. Bg5 {[%clk 0:00:12.3]} 63... Re8
{[%clk 0:00:03.3]} 64. Nh6 {[%clk 0:00:12.8]} 64... Kb6 {[%clk 0:00:03.1]} 65.
f5 {[%clk 0:00:13.5]} 1-0

[Event "*** MasterClass Titled Tuesday Blitz"]
[Site "Chess.com"]
[Date "2017.12.05"]
[Round "4"]
[White "GrigorGrigorov"]
[Black "cheese111"]
[Result "1/2-1/2"]
[WhiteElo "2596"]
[BlackElo "2422"]
[TimeControl "180+2"]
[EndTime "15:06:29 PST"]
[Termination "Game drawn - insufficient material"]

1. d4 {[%clk 0:03:01.9]} 1... d5 {[%clk 0:02:59.9]} 2. c4 {[%clk 0:03:02.2]}
2... e6 {[%clk 0:03:01.3]} 3. Nc3 {[%clk 0:03:02.8]} 3... Nf6 {[%clk 0:03:02.6]}
4. cxd5 {[%clk 0:03:03.8]} 4... exd5 {[%clk 0:03:04.5]} 5. Bg5 {[%clk 0:03:04]}
5... c6 {[%clk 0:03:05.9]} 6. e3 {[%clk 0:03:04.6]} 6... Be7 {[%clk 0:03:04.5]}
7. Qc2 {[%clk 0:03:04.6]} 7... Nbd7 {[%clk 0:03:03.8]} 8. Bd3 {[%clk 0:03:05.2]}
8... h6 {[%clk 0:03:05]} 9. Bh4 {[%clk 0:03:05.2]} 9... Nh5 {[%clk 0:03:05.5]}
10. Bxe7 {[%clk 0:03:03.3]} 10... Qxe7 {[%clk 0:03:07.4]} 11. Nge2 {[%clk
0:03:03.9]} 11... Nb6 {[%clk 0:03:04.9]} 12. O-O {[%clk 0:03:00.6]} 12... O-O
{[%clk 0:03:05.1]} 13. Rae1 {[%clk 0:02:58.8]} 13... Bd7 {[%clk 0:02:59]} 14.
Qd2 {[%clk 0:02:47.8]} 14... Rae8 {[%clk 0:02:52.1]} 15. b3 {[%clk 0:02:46.5]}
15... Nc8 {[%clk 0:02:46.6]} 16. Ng3 {[%clk 0:02:28.5]} 16... Nxg3 {[%clk
0:02:41.2]} 17. hxg3 {[%clk 0:02:28]} 17... Nd6 {[%clk 0:02:41.1]} 18. f3 {[%clk
0:02:27]} 18... Qg5 {[%clk 0:02:24]} 19. Kf2 {[%clk 0:02:23.5]} 19... Re7 {[%clk
0:02:08]} 20. Ne2 {[%clk 0:02:22.9]} 20... Bf5 {[%clk 0:01:47.1]} 21. Nf4 {[%clk
0:02:21.4]} 21... Bxd3 {[%clk 0:01:46.6]} 22. Qxd3 {[%clk 0:02:22.5]} 22... Nf5
{[%clk 0:01:44.4]} 23. g4 {[%clk 0:01:41.5]} 23... Qh4+ {[%clk 0:01:31]} 24. Kg1
{[%clk 0:01:42.2]} 24... Ng3 {[%clk 0:01:30.6]} 25. Nh3 {[%clk 0:01:42.9]} 25...
Nxf1 {[%clk 0:01:29.9]} 26. Qxf1 {[%clk 0:01:34.4]} 26... Rfe8 {[%clk
0:01:28.9]} 27. Qf2 {[%clk 0:01:35.9]} 27... Qxf2+ {[%clk 0:01:17.1]} 28. Kxf2
{[%clk 0:01:36.9]} 28... a5 {[%clk 0:00:39.6]} 29. Nf4 {[%clk 0:01:36.2]} 29...
f6 {[%clk 0:00:28.7]} 30. Nd3 {[%clk 0:01:35.6]} 30... Kf7 {[%clk 0:00:29]} 31.
Nc5 {[%clk 0:01:32.5]} 31... b6 {[%clk 0:00:26.4]} 32. Nd3 {[%clk 0:01:32.3]}
32... Ke6 {[%clk 0:00:25.5]} 33. Nf4+ {[%clk 0:01:29.5]} 33... Kd6 {[%clk
0:00:25.7]} 34. Ng6 {[%clk 0:01:30]} 34... Rc7 {[%clk 0:00:24.6]} 35. Nh4 {[%clk
0:01:29.6]} 35... c5 {[%clk 0:00:20.3]} 36. Rd1 {[%clk 0:01:30.6]} 36... cxd4
{[%clk 0:00:20.3]} 37. Nf5+ {[%clk 0:01:31.1]} 37... Ke5 {[%clk 0:00:16]} 38.
Nxd4 {[%clk 0:01:28.8]} 38... g6 {[%clk 0:00:14]} 39. f4+ {[%clk 0:01:27.2]}
39... Kd6 {[%clk 0:00:13.6]} 40. Nb5+ {[%clk 0:01:27.5]} 40... Kc6 {[%clk
0:00:13.5]} 41. Nxc7 {[%clk 0:01:27.3]} 41... Kxc7 {[%clk 0:00:15.4]} 42. Rxd5
{[%clk 0:01:28]} 42... a4 {[%clk 0:00:16.3]} 43. bxa4 {[%clk 0:01:27.2]} 43...
Re4 {[%clk 0:00:10.9]} 44. Rd4 {[%clk 0:01:27.9]} 44... Re6 {[%clk 0:00:11.5]}
45. Ke2 {[%clk 0:01:23.5]} 45... Rc6 {[%clk 0:00:11.7]} 46. Kd2 {[%clk
0:01:24.5]} 46... Rc5 {[%clk 0:00:12.9]} 47. Kd3 {[%clk 0:01:23.9]} 47... Ra5
{[%clk 0:00:12.1]} 48. e4 {[%clk 0:01:22.9]} 48... h5 {[%clk 0:00:12.7]} 49.
gxh5 {[%clk 0:01:21.2]} 49... Rxh5 {[%clk 0:00:14.6]} 50. Ke3 {[%clk 0:01:19.6]}
50... Rh1 {[%clk 0:00:15.2]} 51. Rd2 {[%clk 0:01:11.5]} 51... Re1+ {[%clk
0:00:15.2]} 52. Kf3 {[%clk 0:01:12.2]} 52... Rc1 {[%clk 0:00:16.2]} 53. e5
{[%clk 0:01:12.1]} 53... fxe5 {[%clk 0:00:16.9]} 54. fxe5 {[%clk 0:01:13.2]}
54... Rc4 {[%clk 0:00:17.3]} 55. Rd6 {[%clk 0:01:02.5]} 55... g5 {[%clk
0:00:12.5]} 56. Rg6 {[%clk 0:00:56.7]} 56... Rxa4 {[%clk 0:00:09.7]} 57. Rxg5
{[%clk 0:00:57.6]} 57... Rxa2 {[%clk 0:00:09.1]} 58. Ke4 {[%clk 0:00:59]} 58...
b5 {[%clk 0:00:08.9]} 59. Rg7+ {[%clk 0:00:56.2]} 59... Kc6 {[%clk 0:00:09.4]}
60. g4 {[%clk 0:00:53.4]} 60... b4 {[%clk 0:00:09.4]} 61. Rg8 {[%clk 0:00:54.4]}
61... Kc7 {[%clk 0:00:08]} 62. Rg7+ {[%clk 0:00:45.8]} 62... Kc6 {[%clk
0:00:09.1]} 63. Rg6+ {[%clk 0:00:46.9]} 63... Kc7 {[%clk 0:00:09.9]} 64. Kd5
{[%clk 0:00:41.1]} 64... Rc2 {[%clk 0:00:07.2]} 65. Rg7+ {[%clk 0:00:34.8]}
65... Kb6 {[%clk 0:00:07.9]} 66. Rg8 {[%clk 0:00:35.4]} 66... Kb7 {[%clk
0:00:08.9]} 67. Rf8 {[%clk 0:00:29.3]} 67... b3 {[%clk 0:00:09.1]} 68. Rf1
{[%clk 0:00:20]} 68... b2 {[%clk 0:00:10.2]} 69. Rb1 {[%clk 0:00:20.4]} 69...
Rg2 {[%clk 0:00:07.5]} 70. Ke6 {[%clk 0:00:17.7]} 70... Kc7 {[%clk 0:00:08.1]}
71. Kf5 {[%clk 0:00:12.3]} 71... Kd7 {[%clk 0:00:08.5]} 72. g5 {[%clk
0:00:10.8]} 72... Ke7 {[%clk 0:00:09.7]} 73. Kg6 {[%clk 0:00:07.7]} 73... Ke6
{[%clk 0:00:10]} 74. Re1 {[%clk 0:00:07]} 74... Rc2 {[%clk 0:00:08.4]} 75. Rb1
{[%clk 0:00:05.3]} 75... Kxe5 {[%clk 0:00:09.1]} 76. Kg7 {[%clk 0:00:06.2]}
76... Kd4 {[%clk 0:00:09.4]} 77. g6 {[%clk 0:00:07.2]} 77... Kc3 {[%clk
0:00:10.6]} 78. Kg8 {[%clk 0:00:07.7]} 78... Rc1 {[%clk 0:00:10.5]} 79. Rxb2
{[%clk 0:00:09.1]} 79... Kxb2 {[%clk 0:00:12.4]} 80. g7 {[%clk 0:00:10.3]} 80...
Rc8+ {[%clk 0:00:13.3]} 81. Kh7 {[%clk 0:00:11.3]} 81... Rc7 {[%clk 0:00:15]}
82. Kh8 {[%clk 0:00:11.9]} 82... Rxg7 {[%clk 0:00:16.9]} 83. Kxg7 {[%clk
0:00:12.3]} 1/2-1/2